Cogmind - Beta 14 @@@ ROGUE MODE // 2025.01.14 @ 12:23:54 Player: PeanutArbuckle Result: Core destroyed Performance ------------- Evolutions (0) 0 Regions Visited (1) 200 Robots Destroyed (17) 85 Value Destroyed (394) 394 Prototype IDs (2) 40 Alien Tech Used (0) 0 Bonus (0) 0 TOTAL SCORE: 719 Bonus ------- None Cogmind --------- Core Integrity 0/250 Matter 121/300 Energy 106/250 System Corruption 0% Temperature Critical (698) Movement Treading (160) Location -10/Materials Parts ------- > --- POWER (1) -------- Ion Engine > --- PROPULSION (2) --- Improved Treads Improved Treads > --- UTILITY (2) ------ Small Storage Unit Hacking Suite > --- WEAPON (2) ------- Advanced Beam Cannon Advanced Beam Cannon > --- INVENTORY (8) ---- Heavy Ion Engine Flight Unit Advanced Beam Cannon Peak State ------------ > --- POWER ------------ Light Ion Engine > --- PROPULSION ------- Improved Treads Improved Treads > --- UTILITY ---------- Small Storage Unit Hacking Suite > --- WEAPON ----------- Advanced Beam Cannon Maul > --- INVENTORY -------- Ion Engine Heavy Ion Engine Flight Unit Advanced Beam Cannon Advanced Beam Cannon [Rating: 15] Favorites ----------- Power Light Ion Engine Engine Light Ion Engine Propulsion Light Treads Treads Light Treads Hover Unit Hover Unit Utility Small Storage Unit Storage Small Storage Unit Processor Signal Interpreter Hackware Hacking Suite Weapon Light Assault Rifle Energy Cannon Advanced Beam Cannon Ballistic Gun Light Assault Rifle Launcher Grenade Launcher Impact Weapon Maul Build | -11 -10 ------- Run | Yrd Mat Slots Evolved . | . . Power . | . . Propulsion . | . . Utility . | . . Weapon . | . . Parts Attached 22 | 6 16 Power 5 | 1 4 Engine 5 | 1 4 Core . | . . Reactor . | . . Propulsion 6 | 2 4 Treads 5 | 2 3 Leg . | . . Wheel . | . . Hover 1 | . 1 Flight . | . . Utility 3 | 1 2 Device . | . . Storage 1 | 1 . Processor 1 | . 1 Hackware 1 | . 1 Protection . | . . Artifact . | . . Weapon 8 | 2 6 Energy Gun . | . . Energy Cannon 4 | . 4 Ballistic Gun 2 | 2 . Ballistic Cannon . | . . Launcher 1 | . 1 Special Weapon . | . . Impact Weapon 1 | . 1 Slashing Weapon . | . . Piercing Weapon . | . . Special Melee Weapon . | . . Unidentified Prototypes 2 | . 2 Parts Lost 1 | . 1 Power . | . . Propulsion . | . . Utility . | . . Weapon 1 | . 1 Highest Loss Streak 1 | . 1 To Critical Strikes . | . . Average Slot Usage (%) 93 | . 93 Engine 14 | . 14 Treads 28 | . 28 Storage 14 | . 14 Processor 1 | . 1 Hackware 7 | . 7 Energy Cannon 10 | . 10 Ballistic Gun 7 | . 7 Launcher 5 | . 5 Impact Weapon 3 | . 3 Peak Build Rating 15 | 6 15 Average Rating 9 | 4 11 On Entrance 3 | . 6 Naked Turns . | . . Heaviest Build 17 | 10 17 Greatest Support 46 | 40 46 Greatest Overweight (x) . | . . Average Overweight (x) . | . . Largest Inventory Capacity 8 | 8 8 Average Capacity 7 | 7 8 Most Carried 8 | 5 8 Average Carried 4 | 2 4 Final Capacity 8 | 8 8 Final Carried 3 | 3 3 Class Distribution -------------------- 100% | Mutant Dominant Class ---------------- Mutant | -10/Materials Resources | -11 -10 ----------- Run | Yrd Mat Matter Collected 476 | 213 263 Remotely . | . . Salvage Created 297 | . 297 Parts 28 | . 28 Haulers Intercepted . | . . Recyclers Shooed . | . . Parts Field Recycled . | . . Retrieved Matter . | . . Parts Self-Destructed . | . . Prevented . | . . Kills | -11 -10 ------- Run | Yrd Mat Combat Hostiles Destroyed 13 | . 13 Guns 2 | . 2 Cannons 5 | . 5 AOE 6 | . 6 Classes Destroyed 5 | . 5 Builder 1 | . 1 Operator 1 | . 1 Watcher 2 | . 2 Swarmer 6 | . 6 Grunt 7 | . 7 Best Kill Streak 7 | . 7 Combat Bots Only 6 | . 6 Max Kills in Single Turn 2 | . 2 Gunslinging . | . . Exploded 2 | . 2 Melee . | . . Uniques/NPCs Destroyed . | . . Combat | -11 -10 -------- Run | Yrd Mat Hostile Shots Fired 82 | . 82 Missed 23 | . 23 Damage Taken 882 | . 882 Core 267 | . 267 Absorbed by Shields . | . . Core Remaining (%) 100 | 100 . Volleys Fired 51 | . 51 Largest 2 | . 2 Hottest 136 | . 136 Shots Fired 80 | . 80 Gun 16 | . 16 Cannon 45 | . 45 Launcher 19 | . 19 Special . | . . Kinetic 16 | . 16 Thermal 45 | . 45 Explosive 19 | . 19 Electromagnetic . | . . Robot Hit Streak 6 | . 6 Robot Miss Streak 3 | . 3 Penetration Max . | . . Secondary Targets . | . . Shots Hit Robots 36 | . 36 Core Hits 25 | . 25 Critical Kills . | . . Critical Parts Destroyed . | . . Critical Strikes . | . . Melee Attacks . | . . Impact . | . . Slashing . | . . Piercing . | . . Sneak Attacks . | . . Combat Hostiles . | . . Follow-up Attacks . | . . Damage Inflicted 1252 | . 1252 Guns 74 | . 74 Cannons 430 | . 430 Explosions 745 | . 745 Melee . | . . Ramming 3 | . 3 Kinetic 74 | . 74 Thermal 430 | . 430 Explosive 745 | . 745 Electromagnetic . | . . Impact . | . . Slashing . | . . Piercing . | . . Highest Corruption . | . . Average Corruption . | . . Corruption Purged . | . . Corruption Blocked . | . . Overload Shots . | . . Overflow Damage 1 | . 1 Projectiles 1 | . 1 Explosions . | . . Melee . | . . Knockbacks . | . . Impact . | . . Kinetic . | . . Secondary . | . . Self-Inflicted Damage 122 | . 122 Shots 4 | . 4 Rammed 1 | . 1 Targets Rammed 1 | . 1 Kicked . | . . Crushed . | . . Highest Temperature 698 | . 698 Average Temperature 201 | . 201 Received Heat Transfer 273 | . 273 Effects 19 | . 19 Shutdowns 3 | . 3 Energy Bleed 5 | . 5 Interference 2 | . 2 Matter Decay 1 | . 1 Short Circuit 2 | . 2 Damage (minor) 1 | . 1 Damage (major) 2 | . 2 Damage (core) 3 | . 3 Siege Activations . | . . Robots Corrupted . | . . Combat Hostiles . | . . Parts Fried . | . . Impact Corruptions . | . . Robots Melted . | . . Combat Hostiles . | . . Parts Melted . | . . Heat Transferred 777 | . 777 Parts Sabotaged . | . . Parts Stolen . | . . Parts Stripped . | . . Power Chain Reactions . | . . Alert | -11 -10 ------- Run | Yrd Mat Peak Influence 344 | . 344 Initial . | . . Average 51 | . 64 Maximum Alert Level 1 | . 1 Low Security (%) 95 | 100 95 Level 1 4 | . 4 Level 2 . | . . Level 3 . | . . Level 4 . | . . Level 5 . | . . High Security . | . . Max Security . | . . Squads Dispatched 5 | . 5 Investigation 2 | . 2 Extermination . | . . Reinforcement 3 | . 3 Assault . | . . Garrison . | . . Intercept . | . . Searches Triggered . | . . Construction Impeded . | . . Haulers Reinforced . | . . Active Scanning Responses . | . . Cargo Convoy Interrupts . | . . Stealth | -11 -10 --------- Run | Yrd Mat Distress Signals . | . . Communications Jammed . | . . Distress Signals . | . . Times Spotted 20 | . 20 Peak Tracking Total 4 | . 4 Tactical Retreats . | . . Traps | -11 -10 ------- Run | Yrd Mat Traps Triggered 1 | . 1 Indirectly . | . . Trap Hack Attempts . | . . Triggered . | . . Disarmed . | . . Reprogrammed . | . . Reused . | . . Traps Extracted . | . . Installed . | . . Triggered . | . . Machines | -11 -10 ---------- Run | Yrd Mat Machines Disabled 3 | . 3 Max in Single Turn 1 | . 1 Machines Repaired . | . . Machines Dismantled . | . . Machines Sabotaged . | . . Overloaded Fab Kills . | . . Hacking | -11 -10 --------- Run | Yrd Mat Machines Accessed 2 | . 2 Terminals 2 | . 2 Fabricators . | . . Repair Stations . | . . Recycling Units . | . . Scanalyzers . | . . Garrison Access . | . . Total Hacks 8 | . 8 Successful 7 | . 7 Failed 1 | . 1 Catastrophic 1 | . 1 Database Lockouts . | . . Manual . | . . Terminals 8 | . 8 Fabricators . | . . Repair Stations . | . . Recycling Units . | . . Scanalyzers . | . . Garrison Access . | . . Terminal Hacks 7 | . 7 Record 6 | . 6 Recall Reinforcements 1 | . 1 Fabricator Hacks . | . . Repair Station Hacks . | . . Recycling Unit Hacks . | . . Scanalyzer . | . . Garrison Access Hacks . | . . Unauthorized Hacks . | . . Terminals . | . . Fabricators . | . . Repair Stations . | . . Recycling Units . | . . Scanalyzers . | . . Garrison Access . | . . Data Cores Recovered . | . . Used . | . . Hacking Detections 2 | . 2 Full Trace Events 1 | . 1 Feedback Events . | . . Feedback Blocked . | . . Robot Schematics Acquired . | . . Robots Built . | . . Authchips . | . . Time . | . . Total Robot Build Rating . | . . Part Schematics Acquired . | . . Parts Built . | . . Authchips . | . . Time . | . . Total Part Build Rating . | . . Parts Repaired . | . . Time . | . . Parts Recycled . | . . Recycled Matter . | . . Retrieved Matter . | . . Retrieved Components . | . . Parts Scanalyzed . | . . Part Schematics Acquired . | . . Parts Damaged . | . . Bothacking | -11 -10 ------------ Run | Yrd Mat Used RIF Installer . | . . Robots Hacked . | . . Non-combat . | . . Combat . | . . Robot Hacks Applied . | . . Relay Couplers Released . | . . Fabnet Peak Effective % . | . . Robots Rewired . | . . Allies Hacked . | . . Hacks Repelled . | . . Allies | -11 -10 -------- Run | Yrd Mat Total Allies . | . . Largest Group . | . . Highest-Rated Group . | . . Highest-Rated Ally . | . . Total Orders . | . . Ally Attacks . | . . Total Damage . | . . Kills . | . . Allies Corrupted . | . . Allies Melted . | . . Intel | -11 -10 ------- Run | Yrd Mat Robot Analysis Total . | . . Derelict Logs Recovered . | . . Drone Launches . | . . Drone Recoveries . | . . Exploration | -11 -10 ------------- Run | Yrd Mat Turns Passed 1020 | 196 824 Spaces Moved 522 | 114 408 Core 7 | 7 . Treads 515 | 107 408 Legs . | . . Wheels . | . . Hover . | . . Flight . | . . Fastest Speed 50 | 50 160 Average Speed 158 | 153 160 Slowest Speed 160 | 160 160 Overloaded Moves . | . . Propulsion Burnouts . | . . Robots Hopped . | . . Cave-ins Triggered . | . . Exploration Rate (%) 27 | 7 47 Regions Visited 1 Branch Regions . Pre-discovered Areas . | . . Known Exits Taken . | . . Unknown Exits Taken 1 | 1 . Scrap Searched . | . . Spaces Dug . | . . Terrain Destroyed 112 | . 112 Melee . | . . Projectile 2 | . 2 AOE 110 | . 110 Terrain Rammed . | . . Walls Destroyed . | . . Machines Disabled . | . . Actions | -11 -10 --------- Run | Yrd Mat Total 640 | 135 505 Wait 8 | 7 1 Move 521 | 113 408 Hop . | . . Pick Up 23 | 9 14 Fast Attach . | . . Attach 13 | 6 7 Detach 2 | . 2 Swap 9 | . 9 Drop 12 | . 12 Fire 51 | . 51 Melee . | . . Ram . | . . Kick . | . . Crush 1 | . 1 Escape Stasis . | . . Rewire . | . . Trap . | . . Miscellaneous . | . . Route ------- -11/Scrapyard -10/Materials (discovered 1 exit: [*Mat]) History --------- Turn | Location | Event 12 | -11/Scrapyard | Discovered new exit (range 14) 197 | -11/Scrapyard | Entered Materials 312 | -10/Materials | Build established: Mutant 777 | -10/Materials | Discovered new exit (range 10) 1010 | -10/Materials | Core integrity fell below 50% 1013 | -10/Materials | Core integrity fell below 20% 1022 | -10/Materials | Core destroyed Last Messages --------------- Adv. Beam Cannon broken. Overheating: Short circuit. Overheating: Core damaged (-47). Overheating: System interference. Adv. Beam Cannon temporarily disabled. Overheating: Core damaged (-50). Power failure, Ion Engine shutdown. Overheating: Imp. Treads damaged (-22). G-34 Mercenary destroyed. The unstable cave ceiling collapses. Overheating: Energy bleed (-13). U-05 Engineer lays Concrete. Overheating: Broken Imp. Treads damaged (-41). Overheating: Adv. Beam Cannon damaged (-75). U-05 Engineer lays Concrete. Overheating: Matter decay (-34). U-05 Engineer builds a Wall. Overheating: Energy bleed (-23). Power failure, Ion Engine shutdown. Overheating: Core damaged (-47). Map ----- +----------------------------------------------------+ | | | | | | | | | | | | | | | | | | | | | | | | | | | | | | | ??????????###??????????############# | | ??????#?? ??#??????# """ """ # | | ??????# #??????# """"""""" # | | ??????# """ """ #??????# """"" # | | ??????# """ """ #??????# # | | ??????# """ """ #??????# # | | ??????# ##??#??# %# | | ??????# # #??# ! # | | ??#????? ?????##### ## | | ?## #### # #?# | | ?# @ % =#### | | ?# = * [% %g=u | | ?# ## | | ?# % !! # | | ?### [ = !# | | ???# ### # """ | | ???# #???## """""" | | ???# ###########????# """"" " | | ???# ???????????????# | | ???# ????????????????############## | | ???#?????????????????????????? # | | ????????????????????????????? " " # | | ????????????????????????????# """" / | | ????????????????????????????# """" # | | ????????????????????????????# # | | ????????????????????????????# # | | ??????????????????????????????###### | | ???????????????????????????????????# | | ???????????????????????????????????# | | ???????????????????????????????????# | | ???????????????????????????????????# | | ???????????????????????????????????# | | ???????????????????????????????????# | | ???????????????????????????????????# | | ???????????????????????????????????# | +----------------------------------------------------+ Best States ------------- Heat Dissipation 25 Energy Generation 10 Energy Capacity 250 Matter Stores 300 Matter Capacity 300 Sight Range 16 Terrain Scan Density 10 Evasion (%) 50 Recoil Reduction 2 Offensive Hacking 10 Item Schematics ----------------- None Robot Schematics ------------------ None Fabricated ------------ Nothing Alien Tech Used ----------------- None Achievements -------------- GoHome() Challenges ------------ None Game ------ Seed CoilVisualProtection Manual? 0 Play Time 00:13:26 Cumulative 0.7 hours Start 2025.01.14 @ 10:22:52 End 2025.01.14 @ 12:23:54 Sessions 1 Manual Loads 0 Difficulty Rogue Special Mode None Game No. 2 Rogue 2 Adventurer 0 Explorer 0 Win Type - Total 0 Types 0/0/0/0/0/0/0/0/0 Lore% 0 Gallery% 4 Achievement% 4 Wizard Run 0 Options --------- Layout 1 ASCII 0 Keyboard 0 Movement Mouse Keybinds 0 Fullscreen 1 Font 24/Smallcaps Map View 25x20 Zoom Use 95% Tactical HUD 0 Map Filters NONE Filters NONE Steam 1 RUN: 40c5a0f6-ecd2-4f46-b482-2192d627eea7